fUSD/lending_fUSD_20260111
["ID","MTS","AMOUNT","RATE_DAILY","PERIOD"]
[401376141,1768165844531,-1000.0,0.00017621,2]
[401376142,1768165844541,-500.66892907,0.00017621,2]
[401376143,1768165844551,-500.91201932,0.00017621,2]
[401376144,1768165844560,-500.0,0.00017621,2]
[401376145,1768165844570,-500.78603367,0.00017621,2]
[401376146,1768165844580,-501.18596631,0.00017621,2]
[401376147,1768165844589,-500.88678731,0.00017621,2]
[401376148,1768165844599,-500.0,0.00017621,2]
[401376149,1768165844608,-500.0,0.00017621,2]
[401376150,1768165844617,-743.38858154,0.00017621,2]
[401376151,1768165844627,-414.52858729,0.00017621,2]
[401376152,1768165844637,-312.9434502,0.00017621,2]
[401376153,1768165844647,-1001.71787449,0.00017621,2]
[401376154,1768165844657,-500.0,0.00017621,2]
[401376155,1768165844667,-1000.0,0.00017621,2]
[401376156,1768165844677,-1000.0,0.00017621,2]
[401376157,1768165844686,-150.0,0.00017625,2]
[401376158,1768165844696,-6491.32789076,0.00017633,2]
[401376159,1768165844706,-501.77065485,0.00017636,2]
[401376160,1768165844715,-150.0,0.0001764,2]
[401376161,1768165844725,-1877.90563297,0.0001764,2]
[401376162,1768165844735,-500.0,0.00017644,2]
[401376163,1768165844745,-501.77065485,0.00017655,2]
[401376164,1768165844753,-500.0,0.00017671,2]
[401376165,1768165844763,-150.0,0.00017671,2]
[401376166,1768165844772,-500.0,0.00017671,2]
[401376167,1768165844782,-150.0,0.00017671,2]
[401376168,1768165844791,-500.0,0.00017671,2]
[401376169,1768165844801,-208.30307507,0.00017671,2]
[401376170,1768165844811,-500.0,0.00017671,2]
[401376171,1768165844821,-150.0,0.00017671,2]
[401376172,1768165844830,-150.0,0.00017673,2]
[401376173,1768165844840,-150.0,0.00017673,2]
[401376174,1768165844849,-501.77065485,0.00017673,2]
[401376175,1768165844859,-150.0,0.00017673,2]
[401376176,1768165844868,-2171.6,0.00017683,2]
[401376177,1768165844878,-501.77065485,0.00017691,2]
[401376178,1768165844888,-437.58562247,0.00017695,2]
[401376179,1768165844897,-500.0,0.00017695,2]
[401376180,1768165844906,-500.0,0.00017695,2]
[401376181,1768165844916,-500.0,0.00017695,2]
[401376182,1768165844925,-500.0,0.00017695,2]
[401376183,1768165844935,-500.0,0.00017695,2]
[401376184,1768165844944,-500.0,0.00017695,2]
[401376185,1768165844953,-500.0,0.00017695,2]
[401376186,1768165844963,-500.0,0.00017695,2]
[401376187,1768165844972,-500.0,0.00017695,2]
[401376188,1768165844982,-160.97517369,0.00017695,2]
[401376189,1768165844991,-500.0,0.00017695,2]
[401376190,1768165845000,-386.65632401,0.00017695,2]
[401376191,1768165845010,-500.0,0.00017695,2]
[401376192,1768165845019,-500.0,0.00017695,2]
[401376193,1768165845028,-500.0,0.00017695,2]
[401376194,1768165845038,-500.0,0.00017695,2]
[401376195,1768165845048,-533.84953358,0.00017695,2]
[401376196,1768165845058,-150.0,0.000177,2]
[401376197,1768165845067,-150.0,0.000177,2]
[401376198,1768165845076,-11800.0,0.000177,6]
[401376199,1768165845086,-1000.0,0.000177,2]
[401376200,1768165845096,-501.77065485,0.00017709,2]
[401376201,1768165845106,-176.29942185,0.00017726,2]
[401376202,1768165845115,-500.0,0.00017726,2]
[401376203,1768165845124,-200.0,0.00017726,2]
[401376204,1768165845133,-500.0,0.00017726,2]
[401376205,1768165845144,-275.38440809,0.00017726,2]
[401376206,1768165845155,-150.0,0.00017726,2]
[401376207,1768165845165,-501.77065485,0.00017727,2]
[401376208,1768165845174,-1000.0,0.00017731,2]
[401376209,1768165845184,-501.77065485,0.00017745,2]
[401376210,1768165845194,-2171.6,0.00017747,2]
[401376211,1768165845205,-501.77065485,0.00017764,2]
[401376212,1768165845216,-150.0,0.00017775,2]
[401376213,1768165845226,-150.0,0.00017775,2]
[401376214,1768165845235,-357.99250845,0.0001778,2]
[401376215,1768165845245,-500.0,0.0001778,2]
[401376216,1768165845255,-501.77065485,0.00017782,2]
[401376217,1768165845264,-1000.0,0.000178,2]
[401376218,1768165845275,-501.77065485,0.000178,2]
[401376219,1768165845284,-11800.0,0.000178,6]
[401376220,1768165845294,-2171.6,0.0001781,2]
[401376221,1768165845304,-501.77065485,0.00017818,2]
[401376222,1768165845314,-2523.26466,0.0001782,2]
[401376223,1768165845323,-971.11466,0.0001782,2]
[401376224,1768165845333,-1552.15,0.0001782,2]
[401376225,1768165845343,-500.0,0.00017835,2]
[401376226,1768165845352,-651.0,0.00017836,2]
[401376227,1768165845362,-150.0,0.00017836,2]
[401376228,1768165845371,-150.0,0.00017836,2]
[401376229,1768165845381,-501.77065485,0.00017836,2]
[401376230,1768165845391,-150.0,0.00017836,2]
[401376231,1768165845401,-150.0,0.0001785,2]
[401376232,1768165845412,-501.77065485,0.00017855,2]
[401376233,1768165845424,-200.0,0.00017856,2]
[401376234,1768165845435,-995.46,0.00017859,2]
[401376235,1768165845445,-5888.0,0.00017859,2]
[401376236,1768165845456,-163.05,0.00017866,2]
[401376237,1768165845466,-501.77065485,0.00017873,2]
[401376238,1768165845476,-2171.6,0.00017873,2]
[401376239,1768165845486,-1476.79,0.00017878,2]
[401376240,1768165845496,-500.0,0.0001789,2]
[401376241,1768165845506,-501.77065485,0.00017891,2]
[401376242,1768165845517,-163.05,0.00017891,2]
[401376243,1768165845527,-25000.0,0.00017891,3]
[401376244,1768165845539,-330.14190427,0.00017895,2]
[401376245,1768165845548,-1996.0,0.00017895,2]
[401376246,1768165845558,-330.14190427,0.00017898,2]
[401376247,1768165845568,-1089.8409,0.00017898,2]
[401376248,1768165845577,-1037.8667,0.000179,2]
[401376249,1768165845587,-25000.0,0.000179,3]
[401376250,1768165845596,-4035.95968706,0.000179,3]
[401376251,1768165845606,-330.14190427,0.000179,2]
[401376252,1768165845616,-1000.0,0.000179,2]
[401376253,1768165845627,-955.36169617,0.000179,2]
[401376254,1768165845636,-177.77885313,0.000179,2]
[401376255,1768165845647,-955.36169617,0.000179,2]
[401376256,1768165845658,-955.36169617,0.000179,2]
[401376257,1768165845671,-955.36169617,0.000179,2]
[401376258,1768165845680,-955.36169617,0.000179,2]
[401376259,1768165845690,-1000.0,0.000179,2]
[401376260,1768165845699,-955.36169617,0.000179,2]
[401376261,1768165845709,-955.36169617,0.000179,2]
[401376262,1768165845719,-955.36169617,0.000179,2]
[401376263,1768165845728,-955.36169617,0.000179,2]
[401376264,1768165845737,-11800.0,0.000179,6]
[401376265,1768165845747,-955.36169617,0.000179,2]
[401376266,1768165845756,-955.36169617,0.000179,2]
[401376267,1768165845766,-6491.32789076,0.000179,2]
[401376268,1768165845776,-791.45935323,0.000179,3]
[401376269,1768165845785,-15266.81706232,0.000179,2]
[401376270,1768165845795,-6481.9592954,0.000179,2]
[401376271,1768165845805,-501.77065485,0.00017909,2]
[401376272,1768165845815,-1000.0,0.00017917,2]
[401376273,1768165845825,-186.17,0.00017922,2]
[401376274,1768165845837,-501.77065485,0.00017927,2]
[401376275,1768165845846,-1000.0,0.00017932,2]
[401376276,1768165845858,-2171.6,0.00017937,2]
[401376277,1768165845869,-500.0,0.00017945,2]
[401376278,1768165845881,-501.77065485,0.00017945,2]
[401376279,1768165845891,-1000.0,0.00017946,2]
[401376280,1768165845900,-1000.0,0.00017952,2]
[401376281,1768165845911,-501.77065485,0.00017964,2]
[401376282,1768165845922,-1996.0,0.00017964,2]
[401376283,1768165845931,-1000.0,0.00017965,2]
[401376284,1768165845940,-28016.0,0.00017973,2]
[401376285,1768165845950,-498.39272947,0.00017973,2]
[401376286,1768165845959,-500.0,0.00017973,2]
[401376287,1768165845970,-500.0,0.00017973,2]
[401376288,1768165845979,-500.0,0.00017973,2]
[401376289,1768165845988,-500.0,0.00017973,2]
[401376290,1768165845997,-500.0,0.00017973,2]
[401376291,1768165846007,-500.0,0.00017973,2]
[401376292,1768165846016,-500.0,0.00017973,2]
[401376293,1768165846025,-500.0,0.00017973,2]
[401376294,1768165846034,-500.0,0.00017973,2]
[401376295,1768165846044,-500.0,0.00017973,2]
[401376296,1768165846053,-500.0,0.00017973,2]
[401376297,1768165846062,-500.0,0.00017973,2]
[401376298,1768165846072,-500.0,0.00017973,2]
[401376299,1768165846081,-500.0,0.00017973,2]
[401376300,1768165846091,-500.0,0.00017973,2]
[401376301,1768165846101,-500.0,0.00017973,2]
[401376302,1768165846111,-380.05360747,0.00017973,2]
[401376303,1768165846120,-500.0,0.00017973,2]
[401376304,1768165846130,-500.0,0.00017973,2]
[401376305,1768165846144,-500.0,0.00017973,2]
[401376306,1768165846156,-501.77065485,0.00017982,2]
[401376307,1768165846167,-500.0,0.00017982,2]
[401376308,1768165846176,-936.49962306,0.0001799,2]
[401376309,1768165846187,-936.49962306,0.0001799,2]
[401376310,1768165846196,-7976.8282697,0.00017995,2]
[401376311,1768165846206,-410047.2527068,0.00017995,2]
[401376312,1768165846216,-2177.0138637,0.00017995,2]
[401376313,1768165846226,-22423.998652,0.00017995,2]
[401376314,1768165846236,-410.5521254,0.00017995,2]
[401376315,1768165846245,-100454.5043769,0.00017995,2]
[401376316,1768165846254,-245.94132522,0.00017997,2]
[401376317,1768165846263,-300.0,0.00017999,2]
[401376318,1768165846273,-300.0,0.00017999,2]
[401376319,1768165846283,-300.0,0.00017999,2]
[401376320,1768165846292,-300.0,0.00017999,2]
[401376321,1768165846302,-300.0,0.00017999,2]
[401376322,1768165846311,-673.04563665,0.00017999,2]
[401376323,1768165846321,-300.0,0.00017999,2]
[401376324,1768165846331,-500.0,0.00018,2]
[401376325,1768165846340,-150.0,0.00018,2]
[401376326,1768165846350,-150.0,0.00018,2]
[401376327,1768165846360,-150.0,0.00018,2]
[401376328,1768165846369,-501.77065485,0.00018,2]
[401376329,1768165846379,-150.0,0.00018,2]
[401376330,1768165846388,-150.0,0.00018,2]
[401376332,1768165846398,-150.0,0.00018,2]
[401376334,1768165846407,-150.0,0.00018,2]
[401376336,1768165846416,-150.0,0.00018,2]
[401376338,1768165846425,-150.0,0.00018,2]
[401376340,1768165846435,-150.0,0.00018,2]
[401376342,1768165846444,-150.0,0.00018,2]
[401376343,1768165846454,-535343.02878183,0.00018,2]
[401376344,1768165846463,-107797.17714148,0.00018,2]
[401376345,1768165846473,-691456.19135569,0.00018,2]
[401376346,1768165846483,-1000.0,0.00018,2]
[401376347,1768165846494,-1000.0,0.00018,2]
[401376348,1768165846510,-1000.0,0.00018,2]
[401376350,1768165846520,-1000.0,0.00018,2]
[401376352,1768165846529,-1000.0,0.00018,2]
[401376353,1768165846538,-1000.0,0.00018,2]
[401376354,1768165846550,-1000.0,0.00018,2]
[401376355,1768165846563,-1000.0,0.00018,2]
[401376356,1768165846572,-1000.0,0.00018,2]
[401376357,1768165846582,-1000.0,0.00018,2]
[401376358,1768165846593,-1000.0,0.00018,2]
[401376359,1768165846603,-1000.0,0.00018,2]
[401376360,1768165846613,-1000.0,0.00018,2]
[401376361,1768165846623,-1000.0,0.00018,2]
[401376362,1768165846634,-1000.0,0.00018,2]
[401376363,1768165846644,-1000.0,0.00018,2]
[401376364,1768165846657,-1000.0,0.00018,2]
[401376365,1768165846669,-1000.0,0.00018,2]
[401376366,1768165846679,-1000.0,0.00018,2]
[401376367,1768165846689,-1000.0,0.00018,2]
[401376368,1768165846699,-1000.0,0.00018,2]
[401376369,1768165846709,-326.69839869,0.00018,2]
[401376370,1768165846720,-659647.29614369,0.00018,2]
[401376371,1768165848496,-971.81328667,0.00018,2]
[401376372,1768165848509,-15161.35483276,0.00018,2]
[401376373,1768165848533,-388.14500003,0.00018,2]
[401376374,1768165848687,-897.58098861,0.00017615,2]
[401376375,1768165848699,-330.28996395,0.00017615,2]
[401376376,1768165848797,-533.77400246,0.00017615,2]
[401376377,1768165848809,-288.64879627,0.00017615,2]
[401376378,1768165848824,-1973.07237381,0.00017615,2]
[401376379,1768165848864,-2531.6338749,0.00017615,2]
[401376380,1768165848874,-3111.06809152,0.00018,2]
[401376381,1768165849040,-151.0,0.0001609,2]
[401376382,1768165849049,-151.0,0.0001609,2]
[401376383,1768165849059,-82733.86234395,0.00018,2]
[401376384,1768165849070,-876.29328672,0.00018,2]
[401376385,1768165849086,-3899.06828915,0.00018,2]
[401376386,1768165849097,-5754.74219162,0.00018,2]
[401376387,1768165849156,-2271.325,0.00018,2]
[401376388,1768165849167,-20861.549734,0.00018,2]
[401376389,1768165849178,-1292.52388058,0.00018,2]
[401376390,1768165868171,9287.565725,7.945e-05,2]
[401376391,1768165868196,5127.374011,7.945e-05,2]
[401376393,1768166226124,-317.8739,0.00014005,2]
[401376394,1768166226145,-59.51355,0.00014092,2]
[401376395,1768166231474,-307.68370555,0.00014092,2]
[401376396,1768166232958,-197.30505796,0.00014092,2]
[401376397,1768166235570,-35.49768649,0.00014092,2]
[401376398,1768166235593,-131.16231351,0.00014136,2]
[401376399,1768166315450,-192.34196044,0.00013905,2]
[401376400,1768166319230,-305.0,0.00013905,2]
[401376401,1768166347081,170.12,0.00011552,2]
[401376402,1768166366593,476.350653,0.00013835,2]
[401376403,1768166405460,-2.65803956,0.00013905,2]
[401376404,1768166405483,-265.0,0.00013905,2]
[401376405,1768166405505,-63.83768649,0.00014136,2]
[401376406,1768166405527,-197.50412168,0.00014158,2]
[401376407,1768166408477,-268.97657972,0.00014158,2]
[401376408,1768166480299,1378.74,7.334e-05,2]
[401376409,1768166480573,1378.74,7.705e-05,2]
[401376410,1768166481003,1378.74,8.076e-05,2]
[401376411,1768166481253,1378.74,8.447e-05,2]
[401376412,1768166481476,1378.74,8.818e-05,2]
[401376413,1768166481665,1378.74,9.189e-05,2]
[401376414,1768166481898,1081.099347,9.56e-05,2]
[401376415,1768166481921,297.640653,9.56e-05,2]
[401376416,1768166482310,1378.74,9.93e-05,2]
[401376417,1768166482528,1378.74,0.00010301,2]
[401376418,1768166482730,1378.74,0.00010672,2]
[401376419,1768166482937,1378.74,0.00011043,2]
[401376420,1768166483350,1378.74,0.00011414,2]
[401376421,1768166483564,1378.74,0.00011785,2]
[401376422,1768166483758,1378.74,0.00012156,2]
[401376423,1768166483960,51.189347,0.00012527,2]
[401376424,1768166483985,1327.550653,0.00012527,2]
[401376425,1768166484155,1378.74,0.00012897,2]
[401376426,1768166484354,1378.74,0.00013268,2]
[401376427,1768166484557,1378.74,0.00013639,2]
[401376428,1768166496541,-195.0,0.0001401,2]
[401376429,1768166498221,-248.05759627,0.0001401,2]
[401376430,1768166501236,-161.61997633,0.0001401,2]
[401376431,1768166502833,-298.73258183,0.0001401,2]
[401376432,1768166504300,-286.8253373,0.0001401,2]
[401376433,1768166540993,-188.50450827,0.0001401,2]
[401376434,1768166541015,-108.83463214,0.00014084,2]
[401376435,1768166570776,-245.30934677,0.00014013,2]
[401376436,1768166573807,-195.0,0.00014084,2]
[401376437,1768166690501,-162.0570813,0.00014013,2]
[401376438,1768166705503,-163.21,0.00014013,2]
[401376439,1768166750433,-385.99815781,0.00014013,2]
[401376442,1768166900548,-179.13660126,0.00013918,2]
[401376443,1768166902317,-275.0,0.00013918,2]
[401376445,1768166906677,-195.0,0.00013918,2]
[401376446,1768166909904,-449.4769934,0.00013918,2]
[401376447,1768166912284,-293.92349696,0.00013918,2]
[401376451,1768166913607,-261.88660126,0.00013918,2]
[401376452,1768166915218,-231.83004513,0.00013918,2]
[401376453,1768166919098,-152.24156188,0.00013918,2]
[401376454,1768166921234,-302.38711266,0.00013918,2]
[401376455,1768166923348,-158.38171169,0.00013918,2]
[401376456,1768166925531,-166.66,0.00013918,2]
[401376457,1768166927764,-166.66,0.00013918,2]
[401376458,1768166930030,-233.24587576,0.00013918,2]
[401376459,1768166930052,-16.75412424,0.00014013,2]
[401376460,1768166931532,-166.66,0.00014013,2]
[401376461,1768166933641,-168.83564335,0.00014013,2]
[401376462,1768166936342,-168.55203038,0.00014013,2]
[401376463,1768166953373,166.66,0.00013148,2]
[401376464,1768166953581,166.66,0.00013425,2]
[401376465,1768166954085,166.66,0.00013702,2]
[401376466,1768166960452,-152.90274,0.00013979,2]
[401376467,1768166970503,-13.75726,0.00013979,2]
[401376468,1768166970525,-7.44999903,0.00014013,2]
[401376469,1768166970545,-195.0,0.00014055,2]
[401376470,1768166970570,-600.0,0.00014055,2]
[401376471,1768166970591,-395.24631195,0.00014091,2]
[401376490,1768167032590,-218.8242383,0.00014091,2]
[401376492,1768167032600,-266.0,0.00014091,2]
[401376494,1768167032609,-250.0,0.00014097,2]
[401376496,1768167032619,-1200.0,0.00014109,2]
[401376498,1768167032628,-300.0,0.00014109,2]
[401376500,1768167032637,-9178.92,0.0001411,2]
[401376503,1768167032647,-209.99,0.0001411,2]
[401376506,1768167032656,-247.65343149,0.00014126,2]
[401376509,1768167032665,-272.27,0.00014205,2]
[401376512,1768167032674,-166.66,0.00014256,2]
[401376514,1768167032683,-150.0,0.00014279,2]
[401376516,1768167032693,-581.63153419,0.00014321,2]
[401376518,1768167032702,-332.52083531,0.00014322,2]
[401376520,1768167032711,-461.41973842,0.00014322,2]
[401376522,1768167032720,-539.02,0.00014381,2]
[401376524,1768167032729,-1378.74,0.00014381,2]
[401376526,1768167032739,-150.0,0.0001439,2]
[401376528,1768167032749,-500.0,0.00014391,2]
[401376530,1768167032758,-289.41841325,0.00014391,2]
[401376532,1768167032767,-845054.21712924,0.00014392,2]
[401376534,1768167032778,-101478.54684581,0.00014392,2]
[401376537,1768167032790,-30581.14796917,0.00014392,2]
[401376539,1768167032801,-22886.08805578,0.00014392,2]
[401376541,1768167032810,-9489.86,0.00014422,2]
[401376542,1768167032819,-170.12,0.0001444,2]
[401376544,1768167032829,-9537.1,0.00014492,2]
[401376545,1768167032839,-166.66,0.00014533,2]
[401376547,1768167032849,-8160.96,0.00014569,2]
[401376549,1768167032858,-158.55612686,0.00014665,2]
[401376551,1768167032867,-256.92492532,0.00014786,2]
[401376553,1768167032876,-10000.0,0.000148,5]
[401376555,1768167032886,-332.52083528,0.00014833,2]
[401376557,1768167032896,-10181.16594884,0.000149,5]
[401376561,1768167032922,-9123.7316167,0.000149,5]
[401376563,1768167032934,-695.10243446,0.000149,5]
[401376564,1768167032944,-272.27,0.00014994,2]
[401376565,1768167032953,-808.67938154,0.00014999,2]
[401376566,1768167032965,-366.13195705,0.00014999,2]
[401376567,1768167032975,-300.0,0.00014999,2]
[401376568,1768167032986,-1011.19177213,0.00014999,2]
[401376569,1768167032998,-50.74751435,0.00014999,2]
[401376570,1768167033008,-1545.77511753,0.00015,2]
[401376571,1768167033026,-279.70866333,0.00015,2]
[401376572,1768167033036,-461.41973841,0.00015111,2]
[401376573,1768167033045,-200.0,0.00015165,2]
[401376574,1768167033055,-500.0,0.00015314,2]
[401376575,1768167033064,-500.0,0.00015314,2]
[401376576,1768167033074,-500.0,0.00015314,2]
[401376577,1768167033084,-265.02159826,0.00015314,2]
[401376587,1768167038351,-500.0,0.0001439,2]
[401376588,1768167038361,-493.34152341,0.0001439,2]
[401376589,1768167038372,-6.65847659,0.0001439,2]
[401376590,1768167038382,-500.0,0.0001439,2]
[401376591,1768167038392,-500.0,0.0001439,2]
[401376592,1768167038401,-500.0,0.0001439,2]
[401376593,1768167038411,-500.0,0.0001439,2]
[401376594,1768167038420,-500.0,0.0001439,2]
[401376595,1768167038429,-60.70013834,0.0001439,2]
[401376596,1768167038450,-439.29986166,0.0001439,2]
[401376597,1768167038460,-500.0,0.0001439,2]
[401376598,1768167038470,-44.90347567,0.0001439,2]
[401376599,1768167038491,-455.09652433,0.0001439,2]
[401376600,1768167038501,-209.29014228,0.0001439,2]
[401376601,1768167038513,-190.70985772,0.0001439,2]
[401376602,1768167038522,-500.0,0.0001439,2]
[401376603,1768167038532,-500.0,0.0001439,2]
[401376604,1768167038541,-500.0,0.0001439,2]
[401376605,1768167038551,-500.0,0.0001439,2]
[401376606,1768167038561,-500.0,0.0001439,2]
[401376607,1768167038571,-500.0,0.0001439,2]
[401376608,1768167038581,-500.0,0.0001439,2]
[401376609,1768167038591,-500.0,0.0001439,2]
[401376610,1768167038600,-500.0,0.0001439,2]
[401376611,1768167038613,-500.0,0.0001439,2]
[401376612,1768167038622,-500.0,0.0001439,2]
[401376613,1768167038632,-500.0,0.0001439,2]
[401376615,1768167038642,-500.0,0.0001439,2]
[401376617,1768167038652,-500.0,0.0001439,2]
[401376619,1768167038661,-500.0,0.0001439,2]
[401376621,1768167038670,-234.97840174,0.00015314,2]
[401376623,1768167038683,-500.0,0.00015314,2]
[401376625,1768167038692,-500.0,0.00015314,2]
[401376627,1768167038701,-500.0,0.00015314,2]
[401376629,1768167038710,-151.0,0.00015314,2]
[401376631,1768167038720,-500.0,0.00015314,2]
[401376633,1768167038729,-151.0,0.00015314,2]
[401376635,1768167038738,-500.0,0.00015314,2]
[401376637,1768167038748,-151.0,0.00015314,2]
[401376639,1768167038758,-500.0,0.00015314,2]
[401376641,1768167038767,-151.0,0.00015314,2]
[401376644,1768167038777,-500.0,0.00015314,2]
[401376645,1768167038787,-151.0,0.00015314,2]
[401376648,1768167038796,-500.0,0.00015314,2]
[401376649,1768167038806,-151.0,0.00015314,2]
[401376653,1768167038826,-500.0,0.00015314,2]
[401376656,1768167038841,-151.0,0.00015314,2]
[401376658,1768167038859,-151.0,0.00015314,2]
[401376661,1768167038873,-151.0,0.00015314,2]
[401376663,1768167038885,-151.0,0.00015314,2]
[401376666,1768167038898,-500.0,0.00015314,2]
[401376668,1768167038912,-151.0,0.00015314,2]
[401376671,1768167038926,-151.0,0.00015314,2]
[401376673,1768167038940,-500.0,0.00015314,2]
[401376675,1768167038954,-151.0,0.00015314,2]
[401376678,1768167038968,-151.0,0.00015314,2]
[401376681,1768167038987,-200.0,0.00015314,2]
[401376683,1768167039001,-500.0,0.00015314,2]
[401376685,1768167039012,-151.0,0.00015314,2]
[401376688,1768167039023,-151.0,0.00015314,2]
[401376690,1768167039037,-500.0,0.00015314,2]
[401376693,1768167039050,-151.0,0.00015314,2]
[401376695,1768167039064,-151.0,0.00015314,2]
[401376697,1768167039078,-500.0,0.00015314,2]
[401376700,1768167039093,-151.0,0.00015314,2]
[401376702,1768167039107,-151.0,0.00015314,2]
[401376705,1768167039121,-151.0,0.00015314,2]
[401376707,1768167039133,-151.0,0.00015314,2]
[401376710,1768167039148,-500.0,0.00015314,2]
[401376712,1768167039161,-151.0,0.00015314,2]
[401376714,1768167039175,-151.0,0.00015314,2]
[401376717,1768167039189,-500.0,0.00015314,2]
[401376719,1768167039202,-151.0,0.00015314,2]
[401376721,1768167039215,-500.0,0.00015314,2]
[401376724,1768167039228,-151.0,0.00015314,2]
[401376727,1768167039246,-500.0,0.00015314,2]
[401376729,1768167039262,-151.0,0.00015314,2]
[401376732,1768167039275,-151.0,0.00015314,2]
[401376734,1768167039289,-500.0,0.00015314,2]
[401376737,1768167039299,-151.0,0.00015314,2]
[401376739,1768167039310,-151.0,0.00015314,2]
[401376741,1768167039321,-500.0,0.00015314,2]
[401376744,1768167039334,-151.0,0.00015314,2]
[401376746,1768167039348,-151.0,0.00015314,2]
[401376748,1768167039359,-500.0,0.00015314,2]
[401376750,1768167039371,-151.0,0.00015314,2]
[401376752,1768167039382,-200.0,0.00015314,2]
[401376755,1768167039395,-500.0,0.00015314,2]
[401376757,1768167039408,-200.0,0.00015314,2]
[401376760,1768167039424,-1062.12389034,0.00015315,2]
[401376762,1768167039435,-45218.0936,0.00015316,2]
[401376764,1768167039446,-29353.33113076,0.0001532,2]
[401376766,1768167039457,-1382.78,0.00015324,2]
[401376768,1768167039469,-1000.0,0.00015325,2]
[401376770,1768167039481,-2500.0,0.00015325,2]
[401376773,1768167039498,-332.52083528,0.00015344,2]
[401376778,1768167039532,-151.0,0.00015345,2]
[401376780,1768167039545,-152.0,0.00015345,2]
[401376783,1768167039560,-158.0,0.00015345,2]
[401376785,1768167039573,-152.0,0.00015345,2]
[401376788,1768167039587,-440.38994647,0.00015356,2]
[401376790,1768167039601,-16485.91631088,0.00015393,2]
[401376793,1768167039614,-15703.44932384,0.00015393,2]
[401376795,1768167039632,-334.51331102,0.00015414,2]
[401376798,1768167039645,-195.0,0.00015414,2]
[401376800,1768167039658,-195.0,0.00015414,2]
[401376803,1768167039671,-600.0,0.00015414,2]
[401376805,1768167039684,-300.0,0.00015414,2]
[401376808,1768167039698,-500.0,0.00015424,2]
[401376810,1768167039711,-525.03126034,0.00015424,2]
[401376812,1768167039723,-500.0,0.00015424,2]
[401376814,1768167039736,-500.0,0.00015424,2]
[401376817,1768167039749,-566.60097493,0.00015424,2]
[401376819,1768167039762,-500.0,0.00015424,2]
[401376821,1768167039774,-500.0,0.00015424,2]
[401376824,1768167039787,-500.0,0.00015424,2]
[401376826,1768167039800,-500.0,0.00015424,2]
[401376829,1768167039812,-503.22916224,0.00015424,2]
[401376831,1768167039824,-500.0,0.00015424,2]
[401376833,1768167039836,-500.0,0.00015424,2]
[401376836,1768167039848,-500.0,0.00015424,2]
[401376838,1768167039861,-500.0,0.00015424,2]
[401376840,1768167039873,-500.0,0.00015424,2]
[401376843,1768167039886,-500.0,0.00015424,2]
[401376845,1768167039898,-314.44792646,0.00015424,2]
[401376847,1768167039911,-500.0,0.00015424,2]
[401376850,1768167039923,-500.0,0.00015424,2]
[401376852,1768167039935,-500.0,0.00015424,2]
[401376854,1768167039948,-500.0,0.00015424,2]
[401376857,1768167039960,-500.0,0.00015424,2]
[401376859,1768167039972,-500.0,0.00015424,2]
[401376861,1768167039984,-573.37968592,0.00015424,2]
[401376864,1768167039996,-414.08933578,0.00015424,2]
[401376866,1768167040014,-500.0,0.00015424,2]
[401376869,1768167040028,-500.0,0.00015424,2]